lending/lending_fUSD_20260102
["ID","MTS","AMOUNT","RATE_DAILY","PERIOD"]
[400318659,1767363032326,-205.79824532,0.00015516,2]
[400318660,1767363032336,-334.49680698,0.00015516,2]
[400318662,1767363032348,-165.50319302,0.00015516,2]
[400318664,1767363032357,-500.0,0.00015516,2]
[400318666,1767363032367,-500.0,0.00015516,2]
[400318668,1767363032376,-500.0,0.00015516,2]
[400318670,1767363032386,-500.0,0.00015516,2]
[400318672,1767363032396,-444.05668538,0.00015516,2]
[400318675,1767363032415,-55.94331462,0.00015516,2]
[400318677,1767363032425,-500.0,0.00015516,2]
[400318679,1767363032435,-500.0,0.00015516,2]
[400318681,1767363032444,-500.0,0.00015516,2]
[400318683,1767363032454,-500.0,0.00015516,2]
[400318685,1767363032464,-500.0,0.00015516,2]
[400318687,1767363032474,-500.0,0.00015516,2]
[400318689,1767363032484,-500.0,0.00015516,2]
[400318691,1767363032496,-21.13668538,0.00015516,2]
[400318722,1767363037909,-150.0,0.00015334,2]
[400318723,1767363037920,-150.0,0.00015334,2]
[400318724,1767363037930,-1278.0,0.00015334,2]
[400318725,1767363037939,-150.0,0.00015334,2]
[400318726,1767363037949,-150.0,0.00015334,2]
[400318727,1767363037959,-150.0,0.00015471,2]
[400318728,1767363037969,-1278.0,0.00015471,2]
[400318729,1767363037980,-478.86331462,0.00015516,2]
[400318730,1767363037990,-139.3119958,0.00015516,2]
[400318731,1767363038005,-360.6880042,0.00015516,2]
[400318732,1767363038014,-341.70147687,0.00015516,2]
[400318733,1767363038026,-158.29852313,0.00015516,2]
[400318734,1767363038035,-522.26777937,0.00015516,2]
[400318735,1767363038044,-158.084,0.00015516,2]
[400318736,1767363038054,-366.65130071,0.00015516,2]
[400318737,1767363038098,-150.0,0.00015334,2]
[400318738,1767363038107,-59.00569929,0.00015516,2]
[400318739,1767363038120,-133.05010477,0.00015517,2]
[400318783,1767363044855,-179.6321947,0.00015334,2]
[400318784,1767363044864,-150.0,0.00015334,2]
[400318785,1767363044874,-150.0,0.00015471,2]
[400318786,1767363044884,-248.21930405,0.00015517,2]
[400318787,1767363044895,-2325.146442,0.00015517,2]
[400318788,1767363044981,-123.69654551,0.00015517,2]
[400318790,1767363045847,-362.08547518,0.00015517,2]
[400318791,1767363045858,-7952.77,0.00015517,2]
[400318792,1767363045871,-522.02000001,0.00015517,2]
[400318793,1767363045881,-26428.94961124,0.00015517,2]
[400318794,1767363045893,-2219.4560495,0.00015517,2]
[400318795,1767363045964,-1354.6537082,0.00015517,2]
[400318796,1767363045975,-303.8,0.00015517,2]
[400318797,1767363045986,-3675.54850979,0.00015517,2]
[400318798,1767363046134,-1888.20899287,0.00015517,2]
[400318800,1767363421292,150.0,0.00030137,120]
[400318935,1767363657775,10000.0,0.000202,30]
[400318937,1767363680899,1309.0,0.000202,30]
[400318938,1767363815508,216.0,0.0003013,120]
[400318962,1767364169170,-458.69,0.00013699,2]
[400318974,1767364231884,-340.526,0.00015108,2]
[400318976,1767364231895,-150.0,0.00015236,2]
[400318977,1767364231905,-177.2895099,0.00015317,2]
[400318978,1767364231915,-5535.92338709,0.00015317,2]
[400318979,1767364231925,-599.75286024,0.00015317,2]
[400318980,1767364231935,-200.0,0.00015407,2]
[400318981,1767364231945,-151.0,0.00015407,2]
[400318982,1767364231954,-151.0,0.00015407,2]
[400318983,1767364231964,-151.0,0.00015407,2]
[400318984,1767364231974,-151.0,0.00015407,2]
[400318985,1767364231984,-151.0,0.00015407,2]
[400318986,1767364231995,-151.0,0.00015407,2]
[400318987,1767364232005,-151.0,0.00015407,2]
[400318988,1767364232015,-151.0,0.00015407,2]
[400318989,1767364232024,-151.0,0.00015407,2]
[400318990,1767364232037,-151.0,0.00015407,2]
[400318991,1767364232048,-151.0,0.00015407,2]
[400318992,1767364232058,-151.0,0.00015413,2]
[400318993,1767364232068,-300.0,0.00015414,2]
[400318994,1767364232077,-500.0,0.00015415,2]
[400318995,1767364232088,-500.0,0.00015415,2]
[400318996,1767364232097,-500.0,0.00015415,2]
[400318997,1767364232107,-500.0,0.00015415,2]
[400318998,1767364232116,-500.0,0.00015415,2]
[400318999,1767364232126,-500.0,0.00015415,2]
[400319000,1767364232136,-500.0,0.00015415,2]
[400319002,1767364232146,-582.17490017,0.00015415,2]
[400319004,1767364232155,-500.0,0.00015415,2]
[400319006,1767364232164,-500.0,0.00015415,2]
[400319008,1767364232177,-500.0,0.00015415,2]
[400319010,1767364232186,-3724.03199214,0.00015416,2]
[400319013,1767364232202,-1731.0195115,0.00015416,2]
[400319015,1767364232213,-912.0,0.00015416,2]
[400319019,1767364232242,-18678.06370817,0.00015416,2]
[400319021,1767364232254,-14800.22519475,0.00015416,2]
[400319024,1767364232265,-4021.26022048,0.00015416,2]
[400319067,1767364238020,-2874.48528433,0.00015416,2]
[400319068,1767364238032,-7682.26409437,0.00015416,2]
[400319069,1767364238044,-5718.39082256,0.00015416,2]
[400319070,1767364238066,-4741.20157618,0.00015416,2]
[400319071,1767364238080,-2681.77410054,0.00015416,2]
[400319072,1767364238093,-3275.40696767,0.00015416,2]
[400319073,1767364238116,-500.0,0.00015416,2]
[400319074,1767364238127,-140408.45886317,0.00015416,2]
[400319075,1767364238138,-359.7300006,0.00015416,2]
[400319076,1767364238154,-303.005,0.00015416,2]
[400319077,1767364238170,-455.08116405,0.00015416,2]
[400319089,1767364240251,-2156.18563395,0.00015416,2]
[400319112,1767364244020,-462.28138314,0.00015416,2]
[400319114,1767364245086,-356.204,0.00015416,2]
[400319115,1767364245097,-1097.0,0.00015416,2]
[400319116,1767364245148,-444.13993185,0.00015416,2]
[400319117,1767364245160,-1180.84368926,0.00015416,2]
[400319118,1767364245211,-601.60143477,0.00015416,2]
[400319120,1767364245222,-1743.04638746,0.00015416,2]
[400319121,1767364245270,-108258.31408894,0.00015416,2]
[400319124,1767364245956,-13861.54804547,0.00015416,2]
[400319125,1767364246018,-7707.92731281,0.00015416,2]
[400319126,1767364246083,-657.65642569,0.00015416,2]
[400319127,1767364246180,-257.42503718,0.00015416,2]
[400319128,1767364246191,-524.162615,0.00015416,2]
[400319129,1767364246202,-8878.0,0.00015416,2]
[400319130,1767364246213,-14376.97009005,0.00015416,2]
[400319131,1767364246224,-360.22221646,0.00015416,2]
[400319132,1767364246235,-1875.80863469,0.00015416,2]
[400319133,1767364246246,-528.83216835,0.00015416,2]
[400319134,1767364246258,-99882.94622313,0.00015416,2]
[400319143,1767364508640,974.84,0.00030137,120]
[400319146,1767364523481,-200.0,0.00015068,2]
[400319147,1767364523512,-207.4,0.00015068,2]
[400319148,1767364523545,-215.0738,0.00015068,2]
[400319149,1767364523575,-223.0315306,0.00015068,2]
[400319150,1767364523607,-269.69489761,0.00015068,2]
[400319151,1767364523646,-284.222,0.00015108,2]
[400319171,1767364653350,504.202194,0.0003,120]
[400319182,1767365001653,-227.377,0.0001501,2]
[400319183,1767365001683,-200.0,0.00015068,2]
[400319184,1767365001710,-207.4,0.00015068,2]
[400319185,1767365001739,-215.0738,0.00015068,2]
[400319186,1767365001771,-223.0315306,0.00015068,2]
[400319187,1767365001802,-231.28369723,0.00015068,2]
[400319188,1767365001831,-239.84119403,0.00015068,2]
[400319189,1767365001858,-248.71531821,0.00015068,2]
[400319190,1767365001885,-174.39986089,0.00015068,2]
[400319191,1767365001915,-1000.0,0.00015148,2]
[400319192,1767365001942,-235.49,0.00015186,2]
[400319193,1767365001969,-150.0,0.00015197,2]
[400319194,1767365001996,-150.0,0.00015197,2]
[400319195,1767365002024,-500.0,0.00015197,2]
[400319196,1767365002059,-500.0,0.00015197,2]
[400319197,1767365002087,-150.0,0.00015197,2]
[400319198,1767365002115,-150.0,0.00015197,2]
[400319199,1767365002146,-150.0,0.00015197,2]
[400319200,1767365002584,-262.54511926,0.00015197,2]
[400319201,1767365002612,-339.6638,0.00015216,2]
[400319202,1767365002642,-3813.26111309,0.00015216,2]
[400319203,1767365002853,-1169.0699353,0.00015216,2]
[400319204,1767365002881,-250.0,0.00015307,2]
[400319205,1767365002908,-250.0,0.00015307,2]
[400319206,1767365002939,-151.0,0.00015307,2]
[400319207,1767365002966,-250.0,0.00015307,2]
[400319208,1767365002994,-151.0,0.00015307,2]
[400319209,1767365003022,-250.0,0.00015307,2]
[400319210,1767365003052,-500.0,0.00015307,2]
[400319211,1767365003080,-250.0,0.00015307,2]
[400319212,1767365003108,-151.0,0.00015307,2]
[400319213,1767365003136,-250.0,0.00015307,2]
[400319214,1767365003168,-500.0,0.00015307,2]
[400319215,1767365003198,-250.0,0.00015307,2]
[400319216,1767365003228,-151.0,0.00015307,2]
[400319217,1767365003257,-250.0,0.00015307,2]
[400319218,1767365003408,-500.0,0.00015307,2]
[400319219,1767365003439,-328.29904668,0.00015307,2]
[400319220,1767365003468,-151.0,0.00015307,2]
[400319221,1767365003496,-250.0,0.00015307,2]
[400319222,1767365003526,-500.0,0.00015307,2]
[400319223,1767365003554,-250.0,0.00015307,2]
[400319224,1767365003582,-151.0,0.00015307,2]
[400319225,1767365003614,-500.0,0.00015307,2]
[400319226,1767365003642,-250.0,0.00015307,2]
[400319227,1767365003672,-151.0,0.00015307,2]
[400319228,1767365003703,-500.0,0.00015307,2]
[400319229,1767365003733,-250.0,0.00015307,2]
[400319230,1767365003767,-500.0,0.00015307,2]
[400319231,1767365003797,-151.0,0.00015307,2]
[400319232,1767365003826,-250.0,0.00015307,2]
[400319233,1767365003858,-238.38323648,0.00015307,2]
[400319234,1767365003888,-7.64543368,0.00015307,2]
[400319235,1767365005784,-143.35456632,0.00015307,2]
[400319236,1767365005816,-250.0,0.00015307,2]
[400319237,1767365005849,-151.0,0.00015307,2]
[400319238,1767365005879,-151.0,0.00015307,2]
[400319239,1767365005908,-250.0,0.00015307,2]
[400319240,1767365005939,-250.0,0.00015307,2]
[400319241,1767365005968,-250.0,0.00015307,2]
[400319242,1767365005998,-250.0,0.00015307,2]
[400319243,1767365006027,-250.0,0.00015307,2]
[400319244,1767365006058,-500.0,0.00015307,2]
[400319245,1767365006087,-250.0,0.00015307,2]
[400319246,1767365006118,-500.0,0.00015307,2]
[400319247,1767365006146,-250.0,0.00015307,2]
[400319248,1767365006177,-500.0,0.00015307,2]
[400319249,1767365006325,-250.0,0.00015307,2]
[400319250,1767365006355,-500.0,0.00015307,2]
[400319251,1767365006383,-250.0,0.00015307,2]
[400319252,1767365006650,-500.0,0.00015307,2]
[400319253,1767365006681,-250.0,0.00015307,2]
[400319254,1767365006710,-500.0,0.00015307,2]
[400319255,1767365006738,-250.0,0.00015307,2]
[400319256,1767365006771,-500.0,0.00015307,2]
[400319257,1767365006802,-500.0,0.00015307,2]
[400319258,1767365006833,-500.0,0.00015307,2]
[400319259,1767365006862,-500.0,0.00015307,2]
[400319260,1767365006891,-500.0,0.00015307,2]
[400319261,1767365006926,-500.0,0.00015315,2]
[400319262,1767365006958,-500.0,0.00015315,2]
[400319263,1767365010433,-480.11125,0.00015241,2]
[400319264,1767365010470,-458.21749001,0.00015315,2]
[400319265,1767365010506,-500.0,0.00015315,2]
[400319266,1767365010537,-256.21783432,0.00015315,2]
[400319267,1767365010570,-500.0,0.00015315,2]
[400319268,1767365010604,-500.0,0.00015315,2]
[400319269,1767365010638,-500.0,0.00015315,2]
[400319270,1767365010675,-500.0,0.00015315,2]
[400319271,1767365010708,-500.0,0.00015315,2]
[400319272,1767365010741,-500.0,0.00015315,2]
[400319273,1767365010778,-110.91685134,0.00015315,2]
[400319274,1767365011002,-389.08314866,0.00015315,2]
[400319275,1767365331710,938.29721385,0.0003,120]
[400319285,1767365432119,-1701.873069,0.00015049,2]
[400319286,1767365432130,-570.46712288,0.00015125,2]
[400319287,1767365432139,-1292.41980812,0.00015215,2]
[400319288,1767365432175,-16764.24648996,0.00015215,2]
[400319289,1767365432187,-3144.12495393,0.00015215,2]
[400319290,1767365432252,-3644.00137046,0.00015215,2]
[400319291,1767365432264,-4105.49267856,0.00015215,2]
[400319292,1767365432284,-5351.0,0.00015215,2]
[400319293,1767365432308,-23655.28379771,0.00015215,2]
[400319295,1767365432319,-7686.44818901,0.00015215,2]
[400319296,1767365432370,-1182.79273477,0.00015215,2]
[400319297,1767365432385,-8574.07364616,0.00015215,2]
[400319298,1767365432397,-522.01652846,0.00015215,2]
[400319334,1767365438197,-150.0,0.00015197,2]
[400319335,1767365438210,-1307.29023885,0.00015215,2]
[400319336,1767365438223,-3545.62120439,0.00015215,2]
[400319337,1767365438235,-1276.52476537,0.00015215,2]
[400319338,1767365438247,-207769.80324148,0.00015215,2]
[400319339,1767365438311,-15408.18328867,0.00015215,2]
[400319340,1767365438325,-2521.68840298,0.00015215,2]
[400319341,1767365438337,-29031.7208,0.00015215,2]
[400319342,1767365438372,-373.89027291,0.00015215,2]
[400319343,1767365438383,-382.198885,0.00015215,2]
[400319344,1767365438395,-1463.1461292,0.00015215,2]
[400319345,1767365438407,-842.24151628,0.00015215,2]
[400319346,1767365438436,-2444.02615841,0.00015215,2]
[400319347,1767365438498,-568.6437948,0.00015215,2]
[400319348,1767365438509,-21132.04952565,0.00015215,2]
[400319396,1767365440355,-1405.08006027,0.00015215,2]
[400319397,1767365440367,-2844.23565072,0.00015215,2]
[400319398,1767365440379,-1280.97427058,0.00015215,2]
[400319399,1767365440414,-3918.63899713,0.00015215,2]
[400319400,1767365440426,-814.34053216,0.00015215,2]
[400319401,1767365440439,-863.260002,0.00015215,2]
[400319418,1767365443959,-44505.0,0.00015215,2]
[400319420,1767365444078,-262260.40472266,0.00015215,2]
[400319421,1767365444977,-713.13,0.00015215,2]
[400319423,1767365445040,-275.14396743,0.00015215,2]
[400319528,1767365446183,-1323.72967914,0.00015215,2]
[400319535,1767365446252,-1322.89955036,0.00015215,2]
[400319538,1767365446264,-888.0,0.00015215,2]
[400319550,1767365446388,-3495.83514778,0.00015215,2]
[400319552,1767365446400,-55649.60576669,0.00015215,2]
[400319553,1767365446413,-21707.69824548,0.00015215,2]
[400319554,1767365446424,-115925.66866061,0.00015215,2]
[400319555,1767365446437,-9006.45,0.00015215,2]
[400319556,1767365446449,-4486.5726299,0.00015215,2]
[400319557,1767365446460,-4951.46414392,0.00015215,2]
[400319558,1767365446471,-29597.29245204,0.00015215,2]
[400319559,1767365446481,-300.0,0.00015215,2]
[400319560,1767365446491,-4484.09794356,0.00015216,2]
[400319561,1767365446500,-151.0,0.00015307,2]
[400319562,1767365446509,-151.0,0.00015307,2]
[400319563,1767365446519,-151.0,0.00015307,2]
[400319564,1767365446536,-151.0,0.00015307,2]
[400319565,1767365446546,-151.0,0.00015307,2]
[400319566,1767365446555,-151.0,0.00015307,2]
[400319567,1767365446565,-151.0,0.00015307,2]
[400319568,1767365446575,-250.0,0.00015307,2]
[400319569,1767365446585,-250.0,0.00015307,2]
[400319570,1767365446594,-151.0,0.00015307,2]
[400319571,1767365446604,-151.0,0.00015307,2]
[400319572,1767365446613,-250.0,0.00015307,2]
[400319573,1767365446623,-151.0,0.00015307,2]
[400319574,1767365446633,-250.0,0.00015307,2]
[400319575,1767365446643,-151.0,0.00015307,2]
[400319576,1767365446653,-250.0,0.00015307,2]
[400319577,1767365446663,-250.0,0.00015307,2]
[400319578,1767365446673,-250.0,0.00015307,2]
[400319579,1767365446682,-250.0,0.00015307,2]
[400319580,1767365446692,-250.0,0.00015307,2]
[400319581,1767365446701,-250.0,0.00015307,2]
[400319582,1767365446710,-250.0,0.00015307,2]
[400319584,1767365446720,-250.0,0.00015307,2]
[400319586,1767365446730,-197.4889986,0.00015307,2]
[400319588,1767365446739,-250.0,0.00015307,2]
[400319589,1767365446748,-500.0,0.00015307,2]
[400319590,1767365446758,-250.0,0.00015307,2]
[400319591,1767365446768,-445.4997063,0.00015307,2]
[400319592,1767365446782,-250.0,0.00015307,2]
[400319593,1767365446792,-250.0,0.00015307,2]
[400319594,1767365446801,-250.0,0.00015307,2]
[400319595,1767365446811,-250.0,0.00015307,2]
[400319596,1767365446820,-250.0,0.00015307,2]
[400319597,1767365446830,-327.18,0.00015307,2]
[400319598,1767365446839,-14725.35625107,0.00015316,2]
[400319599,1767365446851,-2901.62084893,0.00015316,2]
[400319600,1767365446861,-500.0,0.00015334,2]
[400319601,1767365446870,-219.01867894,0.00015334,2]
[400319602,1767365446881,-225.67,0.00015348,2]
[400319604,1767365446891,-502.68670497,0.00015401,2]
[400319606,1767365446900,-218.98174208,0.00015401,2]
[400319608,1767365446910,-1653.0,0.0001545,2]
[400319610,1767365446920,-500.0,0.00015471,2]
[400319612,1767365446930,-158.0,0.000155,2]
[400319614,1767365446940,-3690.7361013,0.00015509,2]
[400319615,1767365446949,-500.0,0.00015516,2]
[400319616,1767365446958,-500.0,0.00015516,2]
[400319617,1767365446968,-500.0,0.00015516,2]
[400319618,1767365446978,-500.0,0.00015516,2]
[400319619,1767365446988,-327.18,0.00015581,2]
[400319620,1767365446997,-1487.91210817,0.00015599,2]
[400319621,1767365447007,-500.0,0.00015608,2]
[400319622,1767365447017,-281.4210256,0.00015617,2]
[400319623,1767365447030,-901.8,0.00015641,2]
[400319624,1767365447040,-414.0,0.000157,2]
[400319625,1767365447050,-262.84108368,0.00015716,2]
[400319626,1767365447060,-500.0,0.00015745,2]
[400319627,1767365447070,-500.0,0.0001579,2]
[400319628,1767365447080,-327.18,0.00015855,2]
[400319629,1767365447090,-500.0,0.00015882,2]
[400319630,1767365447100,-161.79245406,0.00015882,2]
[400319631,1767365447109,-158.0,0.000159,2]
[400319632,1767365447119,-868.01799634,0.00016,2]
[400319633,1767365447128,-1322.08090769,0.00016,2]
[400319634,1767365447140,-322.8916,0.00016,2]
[400319635,1767365447152,-2954.93571423,0.00016,2]
[400319636,1767365473330,-300.0,0.00015213,2]
[400319637,1767365473360,-250.0,0.00015213,2]
[400319638,1767365473391,-300.0,0.00015213,2]
[400319639,1767365473420,-500.0,0.00015214,2]
[400319640,1767365473448,-500.0,0.00015214,2]
[400319641,1767365473476,-349.63007336,0.00015214,2]
[400319642,1767365473505,-500.0,0.00015214,2]
[400319643,1767365473535,-500.0,0.00015214,2]
[400319644,1767365473566,-385.21143905,0.00015214,2]
[400319645,1767365473594,-500.0,0.00015214,2]
[400319646,1767365473623,-500.0,0.00015214,2]
[400319647,1767365473652,-325.27783947,0.00015214,2]
[400319648,1767365474156,-500.0,0.00015214,2]
[400319649,1767365474191,-500.0,0.00015214,2]
[400319650,1767365474227,-500.0,0.00015214,2]
[400319651,1767365474263,-500.0,0.00015214,2]
[400319653,1767365474299,-500.0,0.00015214,2]
[400319654,1767365474334,-500.0,0.00015214,2]
[400319655,1767365474369,-500.0,0.00015214,2]
[400319656,1767365474405,-500.0,0.00015214,2]
[400319657,1767365474438,-500.0,0.00015214,2]
[400319658,1767365474471,-500.0,0.00015214,2]
[400319659,1767365474638,-500.0,0.00015214,2]
[400319660,1767365474672,-500.0,0.00015214,2]
[400319661,1767365474707,-500.0,0.00015214,2]
[400319662,1767365474740,-500.0,0.00015214,2]
[400319663,1767365474773,-500.0,0.00015214,2]
[400319664,1767365474807,-500.0,0.00015214,2]
[400319665,1767365474842,-500.0,0.00015214,2]
[400319666,1767365474877,-291.37918394,0.00015214,2]
[400319667,1767365474912,-500.0,0.00015214,2]
[400319668,1767365474946,-500.0,0.00015214,2]
[400319669,1767365474991,-500.0,0.00015214,2]
[400319670,1767365475027,-500.0,0.00015214,2]
[400319671,1767365475075,-500.0,0.00015214,2]
[400319672,1767365475110,-500.0,0.00015214,2]
[400319673,1767365475146,-500.0,0.00015214,2]
[400319674,1767365475181,-500.0,0.00015214,2]
[400319675,1767365475218,-500.0,0.00015214,2]
[400319676,1767365475253,-500.0,0.00015214,2]
[400319677,1767365475288,-500.0,0.00015214,2]
[400319678,1767365475323,-500.0,0.00015214,2]
[400319679,1767365475386,-2204.8381,0.00015116,2]
[400319680,1767365475422,-500.0,0.00015214,2]
[400319681,1767365475456,-500.0,0.00015214,2]
[400319682,1767365475490,-500.0,0.00015214,2]
[400319683,1767365475520,-227.40997594,0.00015214,2]
[400319684,1767365475567,-500.0,0.00015214,2]
[400319685,1767365475602,-500.0,0.00015214,2]
[400319686,1767365477519,-500.0,0.00015214,2]
[400319687,1767365477555,-500.0,0.00015214,2]
[400319688,1767365477591,-500.0,0.00015214,2]
[400319689,1767365477626,-500.0,0.00015214,2]
[400319690,1767365477661,-500.0,0.00015214,2]
[400319691,1767365477697,-500.0,0.00015214,2]
[400319692,1767365477728,-184.38102748,0.00015214,2]
[400319693,1767365477762,-500.0,0.00015214,2]
[400319694,1767365477799,-500.0,0.00015214,2]
[400319695,1767365477834,-500.0,0.00015214,2]
[400319696,1767365477869,-131.24794504,0.00015214,2]
[400319697,1767365477912,-368.75205496,0.00015214,2]
[400319698,1767365477945,-626.44897551,0.00015214,2]
[400319699,1767365477979,-500.0,0.00015214,2]
[400319700,1767365478014,-500.0,0.00015214,2]
[400319701,1767365478058,-500.0,0.00015214,2]
[400319702,1767365478097,-500.0,0.00015214,2]
[400319703,1767365478136,-500.0,0.00015214,2]
[400319704,1767365478171,-500.0,0.00015214,2]
[400319705,1767365478206,-500.0,0.00015214,2]
[400319706,1767365478238,-257.8886,0.00015216,2]
[400319707,1767365485374,-500.0,0.00015214,2]
[400319708,1767365485404,-3672.3314,0.00015216,2]
[400319709,1767365485434,-256.35638777,0.0001527,2]
[400319710,1767365485637,-1279.1940046,0.00015489,2]
[400319711,1767365485669,-358.98979335,0.00015496,2]
[400319712,1767365485700,-743.95605408,0.0001568,2]
[400319713,1767365485730,-151.0,0.00015838,2]
[400319714,1767365485760,-151.0,0.00015838,2]
[400319715,1767365485790,-1004.14383028,0.00015999,2]
[400319717,1767365947374,-166.66,0.0001473,2]
[400319718,1767365947404,-300.0,0.00014751,2]
[400319719,1767365947434,-1200.0,0.00014772,2]
[400319720,1767365947469,-300.0,0.00014772,2]
[400319721,1767365947498,-160.20652096,0.00014773,2]
[400319722,1767365947528,-500.0,0.00014773,2]
[400319723,1767365947559,-500.0,0.00014773,2]
[400319724,1767365947589,-172.89596093,0.00014773,2]
[400319725,1767365947619,-164.00007035,0.00014773,2]
[400319726,1767365947648,-500.0,0.00014773,2]
[400319727,1767365947678,-500.0,0.00014773,2]
[400319728,1767365947710,-500.0,0.00014773,2]
[400319729,1767365948102,-500.0,0.00014773,2]
[400319730,1767365948143,-500.0,0.00014773,2]
[400319731,1767365948179,-503.89734133,0.00014773,2]
[400319732,1767365948218,-505.42764986,0.00014773,2]
[400319733,1767365948255,-500.0,0.00014773,2]
[400319734,1767365948291,-515.60530049,0.00014773,2]
[400319735,1767365948325,-500.0,0.00014773,2]
[400319736,1767365948363,-166.66,0.0001504,2]
[400319737,1767365948402,-1200.0,0.00015213,2]
[400319738,1767365948706,-300.0,0.00015213,2]
[400319739,1767365948746,-303.24575489,0.00015214,2]
[400319740,1767365948782,-209.46793767,0.00015214,2]
[400319741,1767365948825,-202.80864883,0.00015214,2]
[400319742,1767365948868,-500.0,0.00015214,2]
[400319743,1767365948905,-500.0,0.00015214,2]
[400319744,1767365948948,-500.0,0.00015214,2]
[400319745,1767365948982,-500.0,0.00015214,2]
[400319746,1767365949020,-500.0,0.00015214,2]
[400319747,1767365949062,-500.0,0.00015214,2]
[400319748,1767365949098,-318.36196186,0.00015214,2]
[400319749,1767365949137,-500.0,0.00015214,2]
[400319750,1767365949198,-500.0,0.00015214,2]
[400319751,1767365949241,-500.0,0.00015214,2]
[400319752,1767365949277,-500.0,0.00015214,2]
[400319753,1767365949317,-500.0,0.00015214,2]
[400319754,1767365949351,-500.0,0.00015214,2]
[400319755,1767365949389,-500.0,0.00015214,2]
[400319756,1767365949432,-601.27997908,0.00015214,2]
[400319757,1767365949475,-500.0,0.00015214,2]
[400319758,1767365949514,-500.0,0.00015214,2]
[400319759,1767365949549,-297.45004184,0.00015214,2]
[400319760,1767365951633,-202.54995816,0.00015214,2]
[400319761,1767365951664,-500.0,0.00015214,2]
[400319762,1767365951701,-500.0,0.00015214,2]
[400319763,1767365951736,-500.0,0.00015214,2]
[400319764,1767365951765,-500.0,0.00015214,2]
[400319765,1767365951795,-500.0,0.00015214,2]
[400319766,1767365951830,-500.0,0.00015214,2]
[400319767,1767365951864,-500.0,0.00015214,2]
[400319768,1767365951895,-500.0,0.00015214,2]
[400319769,1767365951930,-500.0,0.00015214,2]
[400319770,1767365951963,-94.91008368,0.00015214,2]
[400319771,1767365952006,-405.08991632,0.00015214,2]
[400319772,1767365952169,-500.0,0.00015214,2]
[400319773,1767365952209,-500.0,0.00015214,2]
[400319774,1767365952240,-500.0,0.00015214,2]
[400319775,1767365952276,-500.0,0.00015214,2]
[400319776,1767365952311,-500.0,0.00015214,2]
[400319777,1767365952347,-500.0,0.00015214,2]
[400319778,1767365952379,-500.0,0.00015214,2]
[400319779,1767365952415,-500.0,0.00015214,2]
[400319780,1767365952452,-500.0,0.00015214,2]
[400319781,1767365956396,-2401.26760869,0.00015116,2]
[400319782,1767365956628,-4802.53521738,0.00015116,2]
[400319783,1767365956860,-394.93956524,0.00015116,2]
[400319784,1767365956890,-151.0,0.00015212,2]
[400319785,1767365956925,-500.0,0.00015214,2]
[400319786,1767365956961,-500.0,0.00015214,2]
[400319787,1767365956996,-500.0,0.00015214,2]
[400319788,1767365957035,-500.0,0.00015214,2]
[400319789,1767365957071,-500.0,0.00015214,2]
[400319790,1767365957106,-500.0,0.00015214,2]
[400319791,1767365957142,-500.0,0.00015214,2]
[400319792,1767365957177,-500.0,0.00015214,2]
[400319793,1767365957212,-408.13086952,0.00015214,2]
[400319794,1767366219965,705.64,7.272e-05,2]
[400319795,1767366220164,705.64,7.655e-05,2]
[400319796,1767366220358,705.64,8.038e-05,2]